bitfinex-derivatives/quotes_SOLF0:USTF0_20241103
["timestamp","ask_amount","ask_price","bid_price","bid_amount"]
[1730617208956,2.6485,163.29,163.16,3.0654]
[1730617208957,2.84,163.2,163.16,6.59581191]
[1730617209180,3.0655,163.17,163.15,6.59581191]
[1730617210676,3.0652,163.18,163.16,6.59581191]
[1730617210860,2.84,163.19,163.17,6.59581191]
[1730617211669,5.905,163.19,163.17,6.59581191]
[1730617212380,6.59581191,163.26,163.17,6.59581191]
[1730617212570,2.84,163.25,163.2,6.59581191]
[1730617212871,3.0643,163.23,163.2,6.59581191]
[1730617213376,3.0643,163.23,163.2,9.66051191]
[1730617216669,3.0646,163.21,163.19,6.59581191]
[1730617217575,3.0644,163.22,163.19,9.66071191]
[1730617217879,3.0644,163.22,163.21,6.59581191]
[1730617223380,3.0646,163.22,163.18,9.66091191]
[1730617223679,9.43581191,163.24,163.18,9.66091191]
[1730617223881,3.0643,163.23,163.18,9.66091191]
[1730617224180,9.43581191,163.24,163.18,9.66091191]
[1730617225279,3.0645,163.22,163.18,9.66091191]
[1730617226488,6.59581191,163.22,163.16,6.59581191]
[1730617228089,3.0651,163.19,163.16,6.59581191]
[1730617228285,2.84,163.2,163.16,6.59581191]
[1730617228878,3.065,163.19,163.16,6.59581191]
[1730617229110,3.065,163.19,163.16,9.66131191]
[1730617230087,2.84,163.22,163.18,6.59581191]
[1730617230272,2.84,163.22,163.19,6.59581191]
[1730617231294,3.0648,163.2,163.19,6.59581191]
[1730617231582,2.84,163.22,163.18,6.59581191]
[1730617232183,9.43581191,163.22,163.16,6.59581191]
[1730617232980,3.0651,163.19,163.16,6.59581191]
[1730617234095,3.0651,163.19,163.18,6.59581191]
[1730617234297,2.84,163.22,163.18,6.59581191]
[1730617234487,3.0648,163.2,163.18,6.59581191]
[1730617238697,3.0648,163.2,163.18,9.66091191]
[1730617240086,3.0646,163.21,163.19,9.66071191]
[1730617240596,3.0646,163.21,163.19,3.0649]
[1730617240897,2.84,163.24,163.14,1.2918]
[1730617241097,3.0644,163.22,163.19,3.0648]
[1730617241898,3.0643,163.23,163.2,3.0647]
[1730617243297,1.2926,163.3,163.14,1.2918]
[1730617243496,3.0641,163.24,163.21,3.0645]
[1730617246398,3.0644,163.22,163.19,3.0648]
[1730617250011,3.0644,163.22,163.2,3.0647]
[1730617255010,2.84,163.26,163.14,4.1318]
[1730617255211,3.0642,163.24,163.21,3.0645]
[1730617256303,2.84,163.26,163.21,3.0645]
[1730617256553,3.0642,163.23,163.21,3.0645]
[1730617257320,2.84,163.26,163.14,4.1318]
[1730617257814,2.84,163.26,163.18,3.0651]
[1730617259207,3.0647,163.21,163.18,3.0651]
[1730617262454,2.84,163.22,163.14,1.2918]
[1730617263019,3.0651,163.19,163.16,3.0655]
[1730617264214,2.84,163.22,163.16,3.0655]
[1730617264526,3.0652,163.18,163.16,3.0655]
[1730617265622,2.84,163.18,163.12,58.5189643]
[1730617265821,2.84,163.18,163.03,3.9376]
[1730617266006,2.84,163.18,163.07,3.0672]
[1730617266627,3.0657,163.15,163.07,3.0672]
[1730617266821,2.84,163.14,163.07,3.0672]
[1730617267216,3.0665,163.11,163.07,3.0672]
[1730617267413,2.84,163.14,163.03,59.97422366]
[1730617267815,3.0665,163.11,163.03,59.97422366]
[1730617268115,3.0665,163.11,163.07,3.0671]
[1730617268726,3.0665,163.11,163.08,3.067]
[1730617269821,3.0665,163.11,163.03,59.97422366]
[1730617270019,3.0665,163.11,163.07,3.0671]
[1730617270411,5.9067,163.1,163.07,3.0671]
[1730617270630,5.9067,163.1,163.03,59.97422366]
[1730617270631,2.84,163.1,163.05,3.0675]
[1730617272332,3.0672,163.08,163.04,3.0677]
[1730617273023,3.0672,163.07,163.04,3.0677]
[1730617273226,2.84,163.1,163.04,3.0677]
[1730617273419,2.84,163.1,163.03,56.03662366]
[1730617274137,3.0671,163.08,163.05,3.0676]
[1730617274527,2.84,163.1,163.03,56.03662366]
[1730617274724,3.0671,163.08,163.04,3.0676]
[1730617275332,3.0673,163.07,163.03,59.10452366]
[1730617275526,2.84,163.06,163.03,59.10452366]
[1730617275748,2.84,163.06,163.03,56.03662366]
[1730617276237,3.0677,163.05,163.03,56.03662366]
[1730617276436,2.84,163.06,162.98,3.9404]
[1730617276743,3.0679,163.04,163.0,3.0684]
[1730617277331,2.84,163.06,163.0,3.0684]
[1730617277740,2.84,163.06,163.01,3.0683]
[1730617278239,3.9818,163.13,163.02,3.068]
[1730617278432,2.84,163.12,162.98,2.6658]
[1730617278635,2.84,163.12,162.99,1.3015]
[1730617278937,3.067,163.08,162.99,1.3015]
[1730617279239,2.84,163.07,162.99,1.3015]
[1730617279426,2.84,163.07,163.01,3.0682]
[1730617279658,2.84,163.07,162.99,1.3015]
[1730617280128,2.84,163.07,163.06,3.0674]
[1730617280323,3.9818,163.13,162.99,1.3015]
[1730617280535,2.84,163.12,162.99,1.3015]
[1730617281235,3.0666,163.1,163.07,3.067]
[1730617281434,2.84,163.12,163.07,3.067]
[1730617282329,3.0666,163.1,163.07,3.067]
[1730617282843,2.84,163.12,163.08,3.0668]
[1730617283033,3.0665,163.11,163.08,3.0668]
[1730617284343,2.84,163.12,163.11,3.0664]
[1730617285837,3.9247,163.19,163.05,4.0298]
[1730617286139,2.84,163.18,163.05,4.0298]
[1730617286341,3.0657,163.15,163.05,6.8698]
[1730617286539,2.84,163.18,163.05,6.8698]
[1730617286738,2.84,163.18,163.12,3.0661]
[1730617286938,3.0656,163.16,163.05,6.8698]
[1730617288058,3.0657,163.15,163.12,3.0661]
[1730617288735,3.0656,163.16,163.09,3.0668]
[1730617288939,2.84,163.16,163.05,6.8698]
[1730617289336,2.84,163.16,163.15,3.0657]
[1730617293441,2.84,163.16,163.05,4.0298]
[1730617293849,2.84,163.16,163.05,6.8698]
[1730617294046,3.0659,163.14,163.1,3.0664]
[1730617294239,2.84,163.16,163.05,6.8698]
[1730617295489,3.066,163.14,163.11,3.0664]
[1730617295645,3.9247,163.19,163.05,6.8698]
[1730617295853,3.0654,163.17,163.05,6.8698]
[1730617296442,5.9053,163.18,163.14,3.0657]
[1730617296747,2.84,163.18,163.14,3.0657]
[1730617298249,3.0653,163.17,163.14,3.0657]
[1730617302959,5.9052,163.18,163.15,3.0656]
[1730617310765,2.84,163.18,163.15,3.0656]
[1730617310963,3.0653,163.17,163.14,3.0658]
[1730617313414,2.84,163.18,163.08,2.84]
[1730617313558,1.3586,163.17,163.08,2.84]
[1730617313862,3.066,163.14,163.11,3.0663]
[1730617316467,3.0661,163.13,163.11,3.0663]
[1730617316665,1.3586,163.17,163.09,3.0667]
[1730617317761,3.0664,163.12,163.09,3.0667]
[1730617319055,3.0665,163.11,163.05,2.6795]
[1730617319256,3.0665,163.11,163.05,1.329]
[1730617319981,2.84,163.13,163.02,58.3629886]
[1730617320178,1.3715,163.12,163.02,55.5229886]
[1730617320583,3.0673,163.07,163.04,3.0676]
[1730617320789,5.9073,163.07,163.04,3.0676]
[1730617324194,2.84,163.07,162.99,1.3985]
[1730617324384,2.84,163.07,162.95,5.9770591]
[1730617324385,2.84,163.07,162.96,1.2828]
[1730617324597,2.84,163.07,163.01,3.0683]
[1730617324598,3.0679,163.04,163.01,3.0683]
[1730617325079,2.84,163.07,163.01,3.0683]
[1730617325080,3.0676,163.05,163.01,3.0683]
[1730617325970,3.0676,163.05,163.02,3.0681]
[1730617326873,2.84,163.07,162.96,1.2828]
[1730617327174,3.0678,163.04,163.01,3.0682]
[1730617328173,3.0676,163.05,163.01,3.0682]
[1730617328676,2.84,163.07,162.96,1.2828]
[1730617329477,3.0675,163.06,162.96,1.2828]
[1730617329773,3.067,163.08,163.05,3.0674]
[1730617329967,2.84,163.07,163.05,3.0674]
[1730617332278,2.638,163.11,162.99,2.84]
[1730617332582,2.638,163.11,163.0,2.6568]
[1730617332583,2.84,163.1,163.0,2.6568]
[1730617333085,2.84,163.1,163.07,3.0671]
[1730617334207,2.84,163.1,163.0,2.6568]
[1730617334208,2.84,163.11,163.0,2.6568]
[1730617334688,5.9065,163.11,163.08,3.0669]
[1730617335880,46.89327073,163.12,163.0,2.6568]
[1730617336183,2.84,163.11,163.0,2.6568]
[1730617336576,3.0667,163.1,163.0,2.6568]
[1730617336770,5.9067,163.1,163.0,2.6568]
[1730617337776,3.0669,163.09,163.0,2.6568]
[1730617337969,2.84,163.1,163.0,2.6568]
[1730617339273,2.84,163.1,163.05,3.0674]
[1730617339274,3.0671,163.08,163.05,3.0674]
[1730617339473,2.84,163.1,163.0,2.6568]
[1730617340170,3.0669,163.09,163.05,3.0675]
[1730617340682,3.0669,163.09,163.0,2.6568]
[1730617341373,5.9067,163.1,163.0,2.6568]
[1730617343183,5.9067,163.1,163.06,3.0673]
[1730617343575,5.9067,163.1,163.0,2.6568]
[1730617344678,2.84,163.1,163.0,2.6568]
[1730617344870,2.84,163.1,163.07,3.0671]
[1730617346289,5.9067,163.1,163.07,3.0671]
[1730617354288,2.84,163.1,163.0,2.6568]
[1730617354494,2.84,163.1,163.07,3.0671]
[1730617354495,5.9066,163.1,163.07,3.0671]
[1730617355495,3.0666,163.1,163.07,3.0671]
[1730617356338,3.0666,163.11,163.07,3.0671]
[1730617356793,46.66697073,163.12,163.01,59.66887827]
[1730617358295,46.66697073,163.12,163.06,3.0673]
[1730617358296,3.0668,163.09,163.06,3.0673]
[1730617361495,3.0667,163.1,163.06,3.0673]
[1730617361690,46.66697073,163.12,163.01,59.66887827]
[1730617361893,46.66697073,163.12,163.02,1.2984]
[1730617362291,3.0665,163.11,163.02,1.2984]
[1730617364505,3.0665,163.11,163.07,3.0671]
[1730617371690,3.0665,163.11,163.04,3.0676]
[1730617371896,3.0665,163.11,163.02,1.2984]
[1730617372596,3.0665,163.11,163.07,3.0671]
[1730617373406,3.0665,163.11,163.04,3.0676]
[1730617373604,3.0665,163.11,163.02,1.2984]
[1730617375207,3.0665,163.11,163.07,3.0671]
[1730617378011,3.0665,163.11,163.02,1.2984]
[1730617379311,3.0665,163.11,163.07,3.067]
[1730617382317,1.3715,163.12,163.04,3.09150732]
[1730617382517,2.84,163.15,163.05,2.84]
[1730617383322,1.3409,163.18,163.05,2.84]
[1730617383519,2.84,163.17,163.06,1.328]
[1730617383711,2.84,163.17,163.06,2.687]
[1730617384117,1.3409,163.18,163.06,2.687]
[1730617384456,1.3409,163.18,163.06,8.8217]
[1730617384622,1.3911,163.19,163.06,66.27529988]
[1730617384826,5.9048,163.2,163.17,3.0653]
[1730617385237,5.9048,163.2,163.13,3.0659]
[1730617385534,3.0648,163.2,163.11,2.84]
[1730617385729,5.9048,163.2,163.11,2.84]
[1730617386028,2.84,163.2,163.11,2.84]
[1730617386332,2.84,163.2,163.12,1.333]
[1730617387019,2.84,163.2,163.17,3.0653]
[1730617387832,2.84,163.2,163.11,2.84]
[1730617388426,2.84,163.2,163.07,1.333]
[1730617388644,2.84,163.2,163.07,4.173]
[1730617388930,3.0657,163.16,163.07,4.173]
[1730617389325,3.0657,163.16,163.12,3.0661]
[1730617389723,5.9057,163.16,163.12,3.0661]
[1730617392839,5.9057,163.16,163.07,4.173]
[1730617392840,2.84,163.16,163.07,4.173]
[1730617393039,2.84,163.16,163.13,3.0659]
[1730617394440,2.84,163.16,163.15,3.0657]
[1730617394845,2.84,163.19,163.15,3.0657]
[1730617395040,2.84,163.19,163.07,4.173]
[1730617395244,5.9051,163.19,163.07,4.173]
[1730617395744,3.0651,163.18,163.07,4.173]
[1730617396738,3.0651,163.18,163.14,3.0657]
[1730617396944,2.84,163.19,163.07,4.173]
[1730617397336,2.84,163.19,163.16,3.0654]
[1730617397833,1.3377,163.21,163.11,2.84]
[1730617398029,7.2423,163.21,163.18,3.0651]
[1730617398940,7.2423,163.21,163.17,3.0652]
[1730617400077,4.1777,163.21,163.11,2.84]
[1730617400241,2.84,163.21,163.18,3.0651]
[1730617400440,45.04220242,163.22,163.12,1.3485]
[1730617400637,48.10670242,163.22,163.18,3.065]
[1730617401440,45.04220242,163.22,163.17,3.0653]
[1730617402041,45.04220242,163.22,163.15,3.0656]
[1730617402244,2.7009,163.21,163.11,2.84]
[1730617402641,2.7009,163.21,163.14,3.0657]
[1730617402642,3.0652,163.18,163.14,3.0657]
[1730617403047,3.0652,163.18,163.15,3.0657]
[1730617404844,3.065,163.19,163.15,3.0656]
[1730617406045,3.065,163.19,163.15,3.0655]
[1730617407151,3.065,163.19,163.16,3.0655]
[1730617412157,3.065,163.19,163.11,2.84]
[1730617412354,3.065,163.19,163.17,3.0653]
[1730617412758,3.0648,163.2,163.11,61.12513512]
[1730617413146,1.3581,163.21,163.11,61.12513512]
[1730617413344,4.4227,163.21,163.14,3.0657]
[1730617413560,3.0646,163.21,163.12,2.6319]
[1730617414159,3.0646,163.21,163.17,3.0651]
[1730617414455,3.0646,163.21,163.12,2.6319]
[1730617414655,1.3268,163.25,163.12,2.6319]
[1730617414869,4.1668,163.25,163.13,1.3772]
[1730617415149,3.0642,163.23,163.13,1.3772]
[1730617415956,3.0641,163.24,163.21,3.0645]
[1730617416360,3.0641,163.24,163.16,5.8418808]
[1730617416657,3.0642,163.23,163.19,3.0648]
[1730617418010,3.0642,163.23,163.2,3.0647]
[1730617425400,4.1668,163.25,163.13,1.3772]
[1730617425682,4.1668,163.25,163.18,3.065]
[1730617425683,3.0646,163.21,163.18,3.065]
[1730617425974,3.0646,163.21,163.17,3.0652]
[1730617426277,5.9046,163.21,163.17,3.0652]
[1730617426867,5.9046,163.21,163.18,3.0651]
[1730617428282,2.84,163.21,163.18,3.0651]
[1730617434977,2.84,163.21,163.13,2.84]
[1730617434978,3.0648,163.2,163.13,2.84]
[1730617436786,7.2036,163.21,163.17,3.0652]
[1730617439178,4.139,163.21,163.13,2.84]
[1730617439395,4.139,163.21,163.18,3.065]
[1730617440281,1.3268,163.25,163.14,3.02523924]
[1730617440487,2.84,163.24,163.21,3.0644]
[1730617441284,5.904,163.24,163.21,3.0644]
[1730617441590,3.064,163.24,163.21,3.0644]
[1730617442387,4.3908,163.25,163.21,3.0644]
[1730617444690,4.3908,163.25,163.15,3.13406079]
[1730617444691,1.3268,163.25,163.15,3.13406079]
[1730617444889,1.3268,163.25,163.2,3.0646]
[1730617445097,1.3493,163.24,163.2,3.0646]
[1730617445395,3.0642,163.23,163.2,3.0646]
[1730617451593,3.0639,163.25,163.22,3.0642]
[1730617452308,1.3864,163.3,163.17,2.84]
[1730617452309,2.84,163.27,163.17,2.84]
[1730617452498,2.84,163.27,163.18,2.6553]
[1730617452758,1.3864,163.3,163.18,4.0447]
[1730617452885,2.84,163.28,163.18,4.0447]
[1730617453398,1.3864,163.3,163.18,4.0447]
[1730617453589,3.0635,163.27,163.24,3.0639]
[1730617456798,3.0637,163.26,163.24,3.0639]
[1730617457891,3.0637,163.26,163.23,3.0641]
[1730617458594,3.0637,163.26,163.24,3.064]
[1730617459396,3.0636,163.27,163.24,3.064]
[1730617459953,1.3864,163.3,163.21,2.84]
[1730617459954,4.4494,163.3,163.21,2.84]
[1730617460103,3.063,163.3,163.21,2.84]
[1730617460691,3.063,163.3,163.23,3.0641]
[1730617460892,3.063,163.3,163.21,2.84]
[1730617461497,3.063,163.3,163.27,3.0634]
[1730617461702,5.9027,163.31,163.27,3.0634]
[1730617461896,2.84,163.31,163.27,3.0634]
[1730617463390,3.0629,163.3,163.27,3.0634]
[1730617464005,3.0625,163.33,163.21,2.84]
[1730617464216,4.2191,163.35,163.21,2.84]
[1730617464691,1.3715,163.39,163.21,2.84]
[1730617464895,2.84,163.38,163.22,6.1287]
[1730617465292,4.4328,163.39,163.21,2.84]
[1730617465490,4.4328,163.39,163.23,6.1283]
[1730617465704,19.4803483,163.44,163.24,3.9978]
[1730617465895,3.0597,163.47,163.42,3.0606]
[1730617466427,6.855,163.51,163.43,3.0603]
[1730617466428,3.0595,163.48,163.43,3.0603]
[1730617467305,6.855,163.51,163.39,2.84]
[1730617467306,3.0593,163.49,163.39,2.84]
[1730617467689,6.855,163.51,163.39,2.84]
[1730617468203,3.0594,163.49,163.43,3.0604]
[1730617468702,3.0594,163.49,163.39,2.84]
[1730617468898,3.0594,163.49,163.44,3.0602]
[1730617469502,3.0595,163.48,163.43,5.8804]
[1730617469695,4.015,163.51,163.43,2.82]
[1730617469998,3.0597,163.48,163.43,2.82]
[1730617470302,4.015,163.51,163.42,3.0605]
[1730617471393,3.0598,163.47,163.42,3.0605]
[1730617471998,3.0599,163.46,163.42,3.0605]
[1730617472399,3.0601,163.45,163.4,3.0609]
[1730617472600,3.0601,163.45,163.38,5.5469]
[1730617473108,3.0599,163.46,163.41,3.0608]
[1730617473811,2.82,163.48,163.39,3.061]
[1730617474504,3.0603,163.44,163.39,3.061]
[1730617474700,2.82,163.48,163.37,2.82]
[1730617474903,2.82,163.48,163.4,3.0609]
[1730617475205,3.0601,163.45,163.4,3.0609]
[1730617477701,3.0601,163.45,163.41,3.0608]
[1730617478611,3.0601,163.45,163.4,3.0609]
[1730617478810,2.82,163.47,163.4,3.0609]
[1730617479040,3.0601,163.45,163.4,3.0609]
[1730617479410,2.82,163.47,163.37,2.82]
[1730617479612,3.0603,163.44,163.4,3.061]
[1730617480705,3.0605,163.43,163.39,3.0611]
[1730617482006,3.0603,163.44,163.4,3.061]
[1730617482512,3.0599,163.46,163.42,3.0605]
[1730617482815,2.82,163.47,163.37,2.82]
[1730617483018,5.8798,163.47,163.42,3.0605]
[1730617483319,2.82,163.47,163.42,3.0605]
[1730617483707,4.015,163.51,163.42,3.0605]
[1730617483708,2.82,163.48,163.42,3.0605]
[1730617484413,3.0599,163.46,163.42,3.0605]
[1730617489018,3.0601,163.45,163.4,3.0608]
[1730617489422,3.0601,163.45,163.38,2.536]
[1730617489617,3.0601,163.45,163.41,3.0608]
[1730617491723,3.0598,163.47,163.43,3.0603]
[1730617492726,3.0599,163.46,163.43,3.0603]
[1730617492923,4.015,163.51,163.41,2.82]
[1730617493137,6.835,163.51,163.41,2.82]
[1730617493322,3.0593,163.49,163.41,2.82]
[1730617494625,6.835,163.51,163.41,2.82]
[1730617494835,3.0597,163.48,163.41,2.82]
[1730617495422,3.0597,163.48,163.44,3.0602]
[1730617495626,3.0597,163.48,163.41,2.82]
[1730617496040,3.0588,163.52,163.48,3.0594]
[1730617496345,2.82,163.53,163.41,2.82]
[1730617496533,2.82,163.54,163.41,2.82]
[1730617496730,3.0593,163.5,163.46,3.0598]
[1730617497241,2.82,163.54,163.41,2.82]
[1730617497839,3.0591,163.51,163.46,3.0598]
[1730617498541,3.925,163.58,163.48,3.0594]
[1730617498542,3.0587,163.53,163.48,3.0594]
[1730617498739,3.925,163.58,163.48,2.82]
[1730617499643,3.0581,163.56,163.52,3.0586]
[1730617499848,3.925,163.58,163.48,2.82]
[1730617500235,3.0579,163.57,163.48,2.82]
[1730617501232,5.7186,163.58,163.48,2.82]
[1730617501846,3.0578,163.57,163.53,3.0584]
[1730617502545,2.6608,163.58,163.48,2.82]
[1730617502546,5.7184,163.58,163.54,3.0582]
[1730617503252,5.7184,163.58,163.45,3.9638]
[1730617503253,3.0573,163.6,163.56,3.0579]
[1730617504055,3.0569,163.62,163.58,3.0576]
[1730617504285,2.82,163.63,163.53,2.82]
[1730617504444,2.82,163.65,163.53,2.82]
[1730617504747,3.0572,163.61,163.57,3.0577]
[1730617504933,3.0572,163.61,163.53,2.82]
[1730617505742,3.0565,163.65,163.61,3.0571]
[1730617505940,3.0565,163.65,163.58,2.82]
[1730617506142,3.0565,163.65,163.54,4.0453]
[1730617506143,2.82,163.73,163.59,2.82]
[1730617506364,5.01114481,163.72,163.6,2.82]
[1730617506538,3.9838,163.72,163.6,2.82]
[1730617507048,2.82,163.76,163.6,5.85894026]
[1730617507250,2.82,163.76,163.6,2.82]
[1730617507747,2.82,163.76,163.67,3.0558]
[1730617507947,2.82,163.76,163.65,2.82]
[1730617508135,3.055,163.73,163.68,3.0556]
[1730617508449,2.82,163.76,163.68,3.0556]
[1730617508651,2.82,163.76,163.65,2.82]
[1730617508846,3.055,163.73,163.68,3.0557]
[1730617509348,3.0549,163.73,163.68,3.0556]
[1730617509552,2.82,163.76,163.65,2.82]
[1730617509744,2.82,163.76,163.64,2.82]
[1730617510054,3.0553,163.71,163.66,3.056]
[1730617511346,3.0548,163.74,163.69,3.0554]
[1730617511547,3.0548,163.74,163.68,2.82]
[1730617512156,3.0548,163.74,163.69,3.0555]
[1730617514251,3.9838,163.8,163.68,2.82]
[1730617514457,6.8038,163.8,163.68,2.82]
[1730617514847,3.0546,163.74,163.67,3.0559]
[1730617515044,6.8038,163.8,163.68,3.06]
[1730617515244,6.8038,163.8,163.62,2.6725]
[1730617515554,3.055,163.73,163.68,3.0556]
[1730617515954,3.055,163.73,163.68,6.1156]
[1730617516352,6.8038,163.8,163.68,3.06]
[1730617517556,6.8038,163.8,163.69,3.0554]
[1730617517557,3.0548,163.74,163.69,3.0554]
[1730617518055,3.0542,163.77,163.73,3.0548]
[1730617518758,3.054,163.78,163.73,3.0547]
[1730617519150,7.0438,163.8,163.73,3.0547]
[1730617519351,3.0541,163.77,163.73,3.0547]
[1730617521654,18.2616018,163.98,163.73,3.06]
[1730617521854,18.2616018,163.98,163.74,3.09005982]
[1730617521855,6.1026,163.93,163.74,3.09005982]
[1730617522197,4.0865339,163.92,163.73,3.06]
[1730617522363,3.0527,163.85,163.8,3.0533]
[1730617522558,3.06,163.89,163.79,3.06]
[1730617522765,6.1026,163.93,163.79,3.06]
[1730617522766,3.06,163.93,163.79,3.06]
[1730617523064,3.0524,163.87,163.79,3.06]
[1730617523457,3.06,163.93,163.79,3.06]
[1730617523661,3.0525,163.86,163.79,3.06]
[1730617523954,3.0525,163.86,163.82,3.053]
[1730617524160,3.0519,163.89,163.81,3.06]
[1730617524358,3.06,163.92,163.81,3.06]
[1730617524561,3.06,163.92,163.85,3.0525]
[1730617524776,3.0519,163.89,163.85,3.0525]
[1730617524952,3.06,163.92,163.81,3.06]
[1730617525161,3.9513,163.95,163.82,3.06]
[1730617525361,7.0113,163.95,163.82,3.06]
[1730617525867,3.0514,163.92,163.88,3.052]
[1730617526164,3.0514,163.92,163.79,4.47290085]
[1730617526165,7.0113,163.95,163.86,3.06]
[1730617526395,3.06,164.02,163.86,3.06]
[1730617526566,1.0255964,164.01,163.87,2.7523]
[1730617526764,2.686,164.04,163.9,3.0517]
[1730617527073,3.0509,163.95,163.9,3.0517]
[1730617527369,3.06,164.0,163.89,3.06]
[1730617527664,2.686,164.04,163.9,3.0516]
[1730617527861,4.08532502,164.03,163.9,3.0516]
[1730617528178,3.0509,163.95,163.9,3.0515]
[1730617528380,3.0509,163.95,163.89,3.06]
[1730617528666,3.06,164.03,163.89,3.06]
[1730617529370,3.06,164.03,163.9,3.06]
[1730617529768,3.0507,163.96,163.91,3.0514]
[1730617529964,3.06,164.03,163.9,3.06]
[1730617530269,3.06,164.02,163.9,3.06]
[1730617530467,3.0501,163.99,163.92,3.0512]
[1730617530763,3.06,164.02,163.9,3.06]
[1730617531371,3.06,164.02,163.87,2.7523]
[1730617531554,3.0505,163.96,163.91,3.0514]
[1730617531759,3.06,164.02,163.87,2.7523]
[1730617532071,3.06,164.02,163.88,3.06]
[1730617532368,1.02545106,164.01,163.87,3.06]
[1730617532571,1.02545106,164.01,163.86,3.06]
[1730617532770,1.02545106,164.01,163.86,6.1123]
[1730617532771,3.0516,163.91,163.86,6.1123]
[1730617532964,3.0516,163.91,163.86,3.06]
[1730617533270,3.06,163.96,163.86,3.06]
[1730617533461,3.0516,163.91,163.86,6.1124]
[1730617533862,3.0516,163.91,163.86,3.0524]
[1730617534058,3.0516,163.91,163.86,6.1124]
[1730617534473,3.0514,163.92,163.87,3.0521]
[1730617535892,3.0516,163.91,163.84,3.0526]
[1730617536071,3.06,163.92,163.84,3.0526]
[1730617536385,3.06,163.92,163.8,2.6405]
[1730617536566,3.06,163.92,163.82,3.053]
[1730617536883,3.06,163.92,163.8,5.7005]
[1730617537472,3.0522,163.88,163.83,3.0528]
[1730617538063,3.0522,163.88,163.8,5.7005]
[1730617538264,3.0522,163.88,163.84,3.0527]
[1730617538867,3.0518,163.9,163.86,3.0523]
[1730617539070,3.0518,163.9,163.8,5.7005]
[1730617539458,3.0518,163.9,163.85,3.0525]
[1730617539871,3.06,163.92,163.87,3.0522]
[1730617540064,3.06,163.92,163.8,5.7005]
[1730617540670,3.0519,163.89,163.84,3.0526]
[1730617541176,3.0519,163.89,163.8,5.7005]
[1730617542367,3.0519,163.89,163.85,3.0526]
[1730617543078,3.0519,163.89,163.8,5.7005]
[1730617543374,3.0519,163.89,163.84,3.0527]
[1730617543576,3.06,163.92,163.84,3.0527]
[1730617543875,3.06,163.92,163.8,2.6405]
[1730617544205,3.06,163.92,163.83,3.0529]
[1730617544578,3.0524,163.87,163.83,3.0529]
[1730617545978,3.14,163.91,163.83,2.98319348]
[1730617546308,3.14,163.91,163.82,3.06]
[1730617546574,3.14,163.91,163.83,3.0529]
[1730617546976,3.0522,163.88,163.83,3.0529]
[1730617549680,3.0522,163.88,163.8,5.7805]
[1730617549874,3.0522,163.88,163.84,3.0528]
[1730617550180,9.1463,164.06,163.8,5.7805]
[1730617550181,3.0512,163.93,163.8,5.7805]
[1730617550376,3.14,163.96,163.8,5.7805]
[1730617551075,3.0515,163.91,163.87,3.0521]
[1730617551587,3.052,163.89,163.85,3.0524]